fUST/lending_fUST_20260109
["ID","MTS","AMOUNT","RATE_DAILY","PERIOD"]
[401100346,1767928242472,-284.0,0.00022671,3]
[401100347,1767928242481,-336.0,0.00022671,3]
[401100349,1767928242490,-151.0,0.00022671,3]
[401100352,1767928242499,-152.0,0.00022671,3]
[401100354,1767928242508,-336.0,0.00022671,3]
[401100355,1767928242516,-151.0,0.00022671,3]
[401100358,1767928242526,-336.0,0.00022671,3]
[401100359,1767928242535,-347.0,0.00022671,3]
[401100361,1767928242543,-336.0,0.00022671,3]
[401100363,1767928242552,-347.0,0.00022671,3]
[401100365,1767928242561,-336.0,0.00022671,3]
[401100367,1767928242570,-347.0,0.00022671,3]
[401100369,1767928242579,-336.0,0.00022671,3]
[401100371,1767928242588,-347.0,0.00022671,3]
[401100373,1767928242597,-336.0,0.00022671,3]
[401100375,1767928242606,-347.0,0.00022671,3]
[401100377,1767928242615,-347.0,0.00022671,3]
[401100379,1767928242626,-347.0,0.00022671,3]
[401100380,1767928242635,-347.0,0.00022671,3]
[401100381,1767928242644,-347.0,0.00022671,3]
[401100382,1767928242653,-347.0,0.00022671,3]
[401100383,1767928242662,-347.0,0.00022671,3]
[401100384,1767928242671,-347.0,0.00022671,3]
[401100385,1767928242680,-347.0,0.00022671,3]
[401100386,1767928242689,-347.0,0.00022671,3]
[401100387,1767928242698,-347.0,0.00022671,3]
[401100388,1767928242707,-347.0,0.00022671,3]
[401100389,1767928242716,-347.0,0.00022671,3]
[401100390,1767928242725,-163.2,0.000227,7]
[401100391,1767928242734,-163.82,0.000227,7]
[401100392,1767928242743,-635.9,0.000227,14]
[401100393,1767928242752,-293.28,0.0002274,6]
[401100394,1767928242761,-151.0,0.000228,6]
[401100395,1767928242770,-553.64373807,0.00022816,2]
[401100396,1767928242779,-2674.60743027,0.00022816,2]
[401100397,1767928242787,-2589.0,0.00022819,2]
[401100398,1767928242796,-153.0,0.00022932,2]
[401100399,1767928242805,-153.0,0.00022932,2]
[401100400,1767928242814,-153.0,0.00022932,2]
[401100401,1767928242823,-151.0,0.00023,9]
[401100402,1767928242832,-1041.66666667,0.00023,3]
[401100403,1767928242841,-335.0,0.00023014,7]
[401100404,1767928242850,-1593.0,0.00023049,2]
[401100405,1767928242859,-589.69745305,0.00023075,5]
[401100406,1767928242868,-1681.0,0.00023076,2]
[401100407,1767928242877,-467.25,0.000231,7]
[401100409,1767928242886,-4891.42609763,0.00023162,2]
[401100411,1767928242894,-1170.44,0.00023174,2]
[401100413,1767928242903,-350.1,0.00023183,2]
[401100415,1767928242912,-151.0,0.000232,7]
[401100417,1767928242921,-600.9658097,0.00023216,2]
[401100419,1767928242930,-1201.004146,0.00023216,2]
[401100421,1767928242939,-549.89207234,0.00023222,2]
[401100423,1767928242949,-3498.0,0.00023262,2]
[401100425,1767928242958,-3498.0,0.00023275,2]
[401100427,1767928242967,-151.0,0.000233,5]
[401100429,1767928242976,-1681.0,0.00023323,2]
[401100431,1767928242985,-574.12855637,0.00023364,2]
[401100433,1767928242995,-2773.56790519,0.00023364,2]
[401100435,1767928243007,-1681.0,0.00023375,2]
[401100437,1767928243016,-1170.44,0.00023399,2]
[401100439,1767928243025,-619.25363932,0.0002341,12]
[401100441,1767928243034,-320.0,0.00023494,2]
[401100443,1767928243043,-151.0,0.000235,7]
[401100445,1767928243052,-13544.66,0.000235,2]
[401100447,1767928243062,-202.42195995,0.00023502,2]
[401100449,1767928243072,-341.32178229,0.00023502,2]
[401100451,1767928243081,-3498.0,0.00023518,2]
[401100453,1767928243090,-320.0,0.00023532,2]
[401100455,1767928243099,-188.0,0.00023534,10]
[401100457,1767928243108,-2544.0,0.00023537,2]
[401100459,1767928243117,-320.0,0.00023619,2]
[401100461,1767928243126,-341.32178229,0.00023643,9]
[401100463,1767928243135,-320.0,0.00023672,2]
[401100465,1767928243144,-151.0,0.000237,9]
[401100467,1767928243152,-1170.44,0.00023726,2]
[401100469,1767928243161,-341.32178229,0.00023784,17]
[401100471,1767928243170,-320.0,0.00023789,2]
[401100473,1767928243179,-1000.0,0.00023799,10]
[401100475,1767928243192,-791.0,0.00023799,10]
[401100477,1767928243201,-784.391831,0.000238,2]
[401100479,1767928243210,-151.0,0.000238,8]
[401100481,1767928243218,-615.6021215,0.0002389,2]
[401100483,1767928243227,-198.9749273,0.0002389,2]
[401100485,1767928243236,-155.7662542,0.0002389,2]
[401100487,1767928243245,-600.9658097,0.0002389,2]
[401100489,1767928243254,-155.6000109,0.0002389,2]
[401100491,1767928243263,-193.8322625,0.0002389,2]
[401100492,1767928243272,-153.0,0.0002389,2]
[401100494,1767928243281,-600.9658097,0.0002389,2]
[401100496,1767928243290,-193.5925119,0.0002389,2]
[401100498,1767928243299,-153.0,0.0002389,2]
[401100501,1767928243308,-600.9658097,0.0002389,2]
[401100503,1767928243317,-600.6566519,0.0002389,2]
[401100504,1767928243328,-522.927887,0.000239,2]
[401100507,1767928243337,-151.0,0.000239,9]
[401100509,1767928243346,-320.0,0.00023908,2]
[401100511,1767928243355,-595.37131296,0.00023912,2]
[401100512,1767928243363,-2876.18991768,0.00023912,2]
[401100514,1767928243373,-341.32178229,0.00023926,25]
[401100516,1767928243383,-10000.0,0.00023938,2]
[401100519,1767928243393,-205.54091976,0.00023989,2]
[401100520,1767928243402,-192.08100709,0.00023989,2]
[401100523,1767928243411,-1170.44,0.00023999,2]
[401100525,1767928243421,-1170.44,0.00023999,2]
[401100527,1767928243430,-10015.44201115,0.00024,2]
[401100529,1767928243438,-820.13106878,0.00024,5]
[401100530,1767928243447,-3280.52427513,0.00024,5]
[401100532,1767928243456,-7373.79843942,0.00024,5]
[401100534,1767928243465,-1833.68379643,0.00024,5]
[401100536,1767928243474,-7327.40045055,0.00024,5]
[401100538,1767928243482,-151.0,0.00024,5]
[401100540,1767928243491,-1170.44,0.00024008,2]
[401100542,1767928243500,-1170.44,0.00024008,2]
[401100544,1767928243509,-268.11977249,0.00024009,2]
[401100546,1767928243519,-1072.47908995,0.00024009,2]
[401100549,1767928243528,-2413.07795238,0.00024009,2]
[401100550,1767928243538,-4289.91635978,0.00024009,2]
[401100552,1767928243547,-3188.10932789,0.00024009,2]
[401100555,1767928243556,-5667.74991625,0.00024009,2]
[401100556,1767928243565,-6702.99431216,0.00024009,2]
[401100574,1767928243695,-9652.31180951,0.00024009,2]
[401100576,1767928243704,-8855.85924414,0.00024009,2]
[401100578,1767928243713,-354.27183545,0.00024009,2]
[401100580,1767928243722,-187.1410868,0.00024009,2]
[401100582,1767928243731,-1415.67025446,0.00024009,2]
[401100584,1767928243740,-406.30795457,0.00024009,2]
[401100586,1767928243751,-341.32178229,0.00024067,32]
[401100588,1767928243759,-320.0,0.00024094,2]
[401100590,1767928243768,-635.9,0.000241,14]
[401100592,1767928243777,-1170.44,0.00024141,2]
[401100594,1767928243786,-1170.44,0.00024141,2]
[401100596,1767928243794,-1170.44,0.00024141,2]
[401100598,1767928243803,-1170.44,0.00024141,2]
[401100600,1767928243812,-1170.44,0.00024141,2]
[401100602,1767928243821,-269.68467004,0.00024142,2]
[401100637,1767928244150,-144.63015948,0.00022671,3]
[401100701,1767928246352,-202.36984052,0.00022671,3]
[401100702,1767928246362,-1921.96349281,0.00024132,10]
[401100722,1767928318362,154.55571127,0.00030136,120]
[401100726,1767929018078,172.68,0.00030137,120]
[401100757,1767929432550,-300.0,0.00012899,2]
[401100758,1767929432560,-603.0,0.00012899,2]
[401100759,1767929432570,-10609.4261543,0.000129,2]
[401100760,1767929432605,-255.73509865,0.000129,2]
[401100794,1767929438554,-1839.20783288,0.000129,2]
[401100795,1767929438564,-8050.59021621,0.00012921,2]
[401100796,1767929438573,-8050.59021621,0.00012921,2]
[401100797,1767929438583,-326.91349635,0.00012999,2]
[401100798,1767929438592,-278.18330518,0.00013,2]
[401100799,1767929438602,-31681.21948884,0.00013,2]
[401100800,1767929438611,-500.0,0.00013273,2]
[401100801,1767929438622,-153.37341953,0.00013273,2]
[401100802,1767929438631,-500.0,0.00013273,2]
[401100803,1767929438641,-500.0,0.00013273,2]
[401100804,1767929438650,-500.0,0.00013273,2]
[401100805,1767929438660,-500.0,0.00013273,2]
[401100806,1767929438669,-500.0,0.00013273,2]
[401100807,1767929438678,-500.8915397,0.00013273,2]
[401100808,1767929438688,-3789.85,0.0001369,2]
[401100809,1767929438697,-877.83,0.00013698,2]
[401100810,1767929438707,-877.83,0.00013698,2]
[401100811,1767929438716,-877.83,0.00013698,2]
[401100812,1767929438726,-877.83,0.00013698,2]
[401100813,1767929438736,-877.83,0.00013698,2]
[401100814,1767929438745,-500.0,0.00013698,2]
[401100815,1767929438754,-500.0,0.00013698,2]
[401100816,1767929438763,-500.0,0.00013698,2]
[401100817,1767929438773,-500.0,0.00013698,2]
[401100818,1767929438782,-500.0,0.00013698,2]
[401100819,1767929438791,-1000.0,0.00013699,2]
[401100820,1767929438800,-500.0,0.00013699,2]
[401100821,1767929438809,-500.0,0.00013699,2]
[401100822,1767929438818,-159.05967354,0.00013699,2]
[401100823,1767929438828,-620.64308429,0.00013699,2]
[401100824,1767929438837,-420.06493089,0.00013699,2]
[401100825,1767929438846,-500.0,0.00013699,2]
[401100826,1767929438855,-500.0,0.00013699,2]
[401100827,1767929438864,-500.0,0.00013699,2]
[401100828,1767929438874,-171.67593478,0.00013699,2]
[401100829,1767929438883,-500.0,0.00013699,2]
[401100830,1767929438893,-500.0,0.00013699,2]
[401100831,1767929438902,-500.0,0.00013699,2]
[401100832,1767929438912,-500.0,0.00013699,2]
[401100833,1767929438921,-500.0,0.00013699,2]
[401100834,1767929438931,-500.0,0.00013699,2]
[401100835,1767929438940,-500.0,0.00013699,2]
[401100836,1767929438949,-500.0,0.00013699,2]
[401100837,1767929438958,-496.65509986,0.00013699,2]
[401100838,1767929438967,-500.0,0.00013699,2]
[401100839,1767929438976,-500.0,0.00013699,2]
[401100840,1767929438986,-500.0,0.00013699,2]
[401100841,1767929438996,-500.0,0.00013699,2]
[401100842,1767929439005,-500.0,0.00013699,2]
[401100843,1767929439014,-500.61530681,0.00013699,2]
[401100844,1767929439023,-500.0,0.00013699,2]
[401100845,1767929439032,-500.0,0.00013699,2]
[401100846,1767929439042,-500.5551329,0.00013699,2]
[401100847,1767929439051,-500.0,0.00013699,2]
[401100848,1767929439061,-1000.0,0.00013821,2]
[401100849,1767929439070,-1000.0,0.00013821,2]
[401100850,1767929439079,-1000.0,0.00013821,2]
[401100851,1767929439089,-503.78135185,0.00013821,2]
[401100852,1767929439098,-1009.27679253,0.00013821,2]
[401100853,1767929439107,-326.71427128,0.00013821,2]
[401100854,1767929439116,-300.0,0.00013972,2]
[401100855,1767929439125,-300.0,0.00013972,2]
[401100856,1767929439134,-300.0,0.00013972,2]
[401100857,1767929439143,-300.0,0.00013972,2]
[401100858,1767929439152,-300.0,0.00013972,2]
[401100859,1767929439161,-300.0,0.00013972,2]
[401100860,1767929439170,-300.0,0.00013972,2]
[401100861,1767929439180,-300.0,0.00013972,2]
[401100862,1767929439189,-300.0,0.00013972,2]
[401100863,1767929439199,-300.0,0.00013972,2]
[401100864,1767929439207,-300.0,0.00013972,2]
[401100865,1767929439218,-300.0,0.00013972,2]
[401100866,1767929439227,-300.0,0.00013972,2]
[401100867,1767929439236,-300.0,0.00013972,2]
[401100868,1767929439245,-300.0,0.00013972,2]
[401100869,1767929439254,-600.0,0.00013972,2]
[401100870,1767929439262,-420.0,0.00014147,2]
[401100871,1767929439272,-299.22705364,0.00014246,2]
[401100872,1767929439281,-655.12572557,0.00014246,2]
[401100873,1767929439290,-655.12572557,0.00014246,2]
[401100874,1767929439299,-655.12572557,0.00014246,2]
[401100875,1767929439308,-655.12572557,0.00014246,2]
[401100876,1767929439479,-655.12572557,0.00014246,2]
[401100877,1767929439489,-655.12572557,0.00014246,2]
[401100878,1767929439498,-655.12572557,0.00014246,2]
[401100879,1767929439507,-655.12572557,0.00014246,2]
[401100880,1767929439516,-655.12572557,0.00014246,2]
[401100881,1767929439525,-655.12572557,0.00014246,2]
[401100882,1767929439534,-655.12572557,0.00014246,2]
[401100883,1767929439543,-655.12572557,0.00014246,2]
[401100884,1767929439552,-655.12572557,0.00014246,2]
[401100885,1767929439561,-655.12572557,0.00014246,2]
[401100886,1767929439570,-655.12572557,0.00014246,2]
[401100887,1767929439579,-655.12572557,0.00014246,2]
[401100888,1767929439589,-655.12572557,0.00014246,2]
[401100889,1767929439599,-500.86951473,0.00014247,2]
[401100890,1767929439608,-1000.0,0.00014247,2]
[401100891,1767929439617,-500.46507067,0.00014247,2]
[401100892,1767929439627,-500.0,0.00014247,2]
[401100893,1767929439636,-557.46186064,0.00014247,2]
[401100894,1767929439646,-524.96479402,0.00014247,2]
[401100895,1767929439656,-1000.0,0.00014247,2]
[401100896,1767929439665,-1000.0,0.00014247,2]
[401100897,1767929439675,-500.0,0.00014247,2]
[401100898,1767929439683,-242.93732994,0.00014247,2]
[401100899,1767929439694,-1000.0,0.00014247,2]
[401100900,1767929439703,-1000.0,0.00014247,2]
[401100901,1767929439713,-1000.0,0.00014247,2]
[401100902,1767929439723,-1000.0,0.00014247,2]
[401100903,1767929439732,-1000.0,0.00014247,2]
[401100904,1767929439742,-388.07347701,0.00014247,2]
[401100905,1767929439751,-974.34002557,0.00014247,2]
[401100906,1767929439760,-1000.0,0.00014247,2]
[401100907,1767929439769,-500.0,0.00014247,2]
[401100908,1767929439778,-1000.0,0.00014247,2]
[401100909,1767929439788,-1000.0,0.00014247,2]
[401100910,1767929439797,-877.83,0.00014332,2]
[401100911,1767929439806,-500.0,0.00014332,2]
[401100912,1767929439815,-1500.0,0.00014368,2]
[401100913,1767929439824,-1500.0,0.00014368,2]
[401100914,1767929439833,-1500.0,0.00014368,2]
[401100915,1767929439842,-5000.0,0.00014793,2]
[401100916,1767929439851,-1002.5069206,0.00014795,2]
[401100917,1767929439860,-1006.04975786,0.00014795,2]
[401100918,1767929439869,-1500.0,0.00014795,2]
[401100919,1767929439878,-839.58703801,0.00014795,2]
[401100920,1767929439887,-1500.0,0.00014795,2]
[401100921,1767929439896,-1500.0,0.00014795,2]
[401100922,1767929439905,-953.5278863,0.00014795,2]
[401100923,1767929439914,-1000.0,0.00014795,2]
[401100924,1767929439924,-1500.0,0.00014795,2]
[401100925,1767929439933,-1500.0,0.00014795,2]
[401100926,1767929439942,-1500.0,0.00014795,2]
[401100927,1767929439951,-454.13631744,0.000149,2]
[401100928,1767929439960,-454.13631744,0.000149,2]
[401100929,1767929439969,-454.13631744,0.000149,2]
[401100930,1767929439978,-192.00163587,0.00014916,2]
[401100931,1767929439987,-2000.0,0.00014916,2]
[401100932,1767929439996,-2000.0,0.00014916,2]
[401100933,1767929440005,-328.25630011,0.00015,2]
[401100934,1767929440014,-548.93620082,0.00015,2]
[401100935,1767929440023,-2420.64060424,0.00015,2]
[401100936,1767929440033,-188.335777,0.00015068,2]
[401100937,1767929440042,-2078.16970935,0.00015342,2]
[401100938,1767929440052,-1052.92932298,0.00015342,2]
[401100939,1767929440061,-1088.65394595,0.00015342,2]
[401100940,1767929440070,-2000.0,0.00015342,2]
[401100941,1767929440079,-1000.0,0.00015342,2]
[401100942,1767929440088,-640.00493357,0.00015342,2]
[401100943,1767929440098,-720.0,0.00015369,2]
[401100944,1767929440107,-151.0,0.000154,2]
[401100945,1767929440116,-877.83,0.00015464,2]
[401100946,1767929440125,-500.0,0.00015464,2]
[401100947,1767929440135,-2500.0,0.00015464,2]
[401100948,1767929440144,-1495.04726907,0.00015464,2]
[401100949,1767929440154,-587.0,0.00015517,2]
[401100950,1767929440164,-8050.59021614,0.00015767,2]
[401100951,1767929440173,-8050.59021614,0.00015767,2]
[401100952,1767929440182,-2500.0,0.0001589,2]
[401100953,1767929440192,-877.83,0.0001599,2]
[401100954,1767929440201,-500.0,0.0001599,2]
[401100955,1767929440210,-100000.0,0.0001599,2]
[401100956,1767929440220,-600.0,0.00016,2]
[401100957,1767929440229,-242.77749232,0.00016012,2]
[401100958,1767929440238,-151.0,0.000163,2]
[401100959,1767929440247,-164.14409414,0.00016438,2]
[401100960,1767929440257,-3000.0,0.00016438,2]
[401100962,1767929440266,-183.89,0.0001644,2]
[401100963,1767929440276,-200.0,0.00016473,2]
[401100965,1767929440286,-272.8580354,0.00016848,2]
[401100967,1767929440295,-864.0,0.00016906,2]
[401100969,1767929440304,-2161.42549146,0.00016986,2]
[401100971,1767929440313,-378.32929504,0.00017,2]
[401100973,1767929440322,-1000.0,0.00017,2]
[401100975,1767929440331,-1000.0,0.00017,2]
[401100977,1767929440340,-111422.20585083,0.00017,2]
[401100979,1767929440349,-167383.21631838,0.0001701,3]
[401100981,1767929440361,-823.0,0.00017018,2]
[401100983,1767929440370,-151.0,0.000171,2]
[401100985,1767929440379,-151.0,0.000173,2]
[401100987,1767929440388,-2135.97108924,0.000176,2]
[401100989,1767929440397,-5000.0,0.00017751,2]
[401100991,1767929440406,-151.0,0.000178,2]
[401100993,1767929440416,-400.0,0.00017842,2]
[401100995,1767929440424,-156.74880836,0.00017885,2]
[401100997,1767929440434,-151.0,0.00018,2]
[401100999,1767929440442,-1000.0,0.00018,2]
[401101001,1767929440452,-150919.32539666,0.00018,2]
[401101003,1767929440460,-3140.92195732,0.00018,5]
[401101005,1767929440469,-30003.68823938,0.00018,2]
[401101007,1767929440478,-877.83,0.00018081,2]
[401101009,1767929440487,-500.0,0.00018081,2]
[401101011,1767929440497,-151.0,0.000184,2]
[401101013,1767929440506,-1000.0,0.00018596,2]
[401101015,1767929440515,-8050.59021614,0.00018613,2]
[401101017,1767929440524,-8050.59021614,0.00018613,2]
[401101019,1767929440533,-1076.0,0.00018665,2]
[401101021,1767929440542,-151.0,0.000189,2]
[401101023,1767929440552,-126040.06671999,0.000189,5]
[401101025,1767929440561,-82223.07254731,0.000189,2]
[401101027,1767929440570,-151.0,0.000189,2]
[401101029,1767929440579,-151.0,0.000189,2]
[401101031,1767929440588,-151.0,0.000189,2]
[401101033,1767929440597,-151.0,0.000189,2]
[401101035,1767929440606,-428.40228997,0.00018999,2]
[401101037,1767929440615,-2500.0,0.00019,2]
[401101039,1767929440624,-356.52765787,0.00019,20]
[401101041,1767929440633,-221.941164,0.00019178,2]
[401101043,1767929440642,-221.941164,0.00019178,2]
[401101045,1767929440651,-221.941164,0.00019178,2]
[401101047,1767929440660,-221.941164,0.00019178,2]
[401101049,1767929440670,-180.0,0.00019178,3]
[401101051,1767929440678,-163.2,0.000192,2]
[401101052,1767929440688,-163.82,0.000192,2]
[401101053,1767929440697,-498.89487953,0.00019205,5]
[401101054,1767929440707,-5000.0,0.0001923,2]
[401101055,1767929440716,-2500.0,0.000195,2]
[401101056,1767929440725,-151.0,0.000195,2]
[401101057,1767929440734,-188.335777,0.00019635,2]
[401101058,1767929440744,-164.67801811,0.000198,4]
[401101059,1767929440754,-151.0,0.000198,2]
[401101060,1767929440763,-300.00025089,0.0002,7]
[401101061,1767929440772,-77475.54069751,0.0002,2]
[401101062,1767929440781,-877.83,0.00020275,2]
[401101063,1767929440790,-500.0,0.00020275,2]
[401101064,1767929440799,-1000.0,0.00020456,2]
[401101065,1767929440808,-244.0,0.00020456,2]
[401101066,1767929440817,-151.0,0.000207,4]
[401101067,1767929440826,-1041.66666667,0.00020708,2]
[401101068,1767929440835,-172.0,0.00020822,3]
[401101069,1767929440844,-291.8,0.00020873,2]
[401101070,1767929440853,-478.4752849,0.00020999,2]
[401101071,1767929440862,-449.999999,0.00021,2]
[401101072,1767929440871,-24790.43694266,0.00021,2]
[401101073,1767929440879,-877.83,0.00021032,2]
[401101074,1767929440889,-877.83,0.00021032,2]
[401101075,1767929440898,-877.83,0.00021032,2]
[401101076,1767929440907,-877.83,0.00021032,2]
[401101077,1767929440916,-877.83,0.00021032,2]
[401101078,1767929440925,-877.83,0.00021032,2]
[401101079,1767929440934,-877.83,0.00021032,2]
[401101080,1767929440943,-877.83,0.00021032,2]
[401101081,1767929440953,-877.83,0.00021032,2]
[401101082,1767929440961,-877.83,0.00021032,2]
[401101083,1767929440971,-877.83,0.00021032,2]
[401101084,1767929440980,-877.83,0.00021032,2]
[401101086,1767929440989,-877.83,0.00021032,2]
[401101088,1767929440998,-877.83,0.00021032,2]
[401101090,1767929441007,-500.0,0.00021032,2]
[401101092,1767929441016,-500.0,0.00021032,2]
[401101094,1767929441025,-500.0,0.00021032,2]
[401101096,1767929441035,-500.0,0.00021032,2]
[401101098,1767929441043,-649.91969685,0.00021032,2]
[401101100,1767929441052,-200.0,0.00021032,2]
[401101101,1767929441061,-166624.79567031,0.00021033,2]
[401101104,1767929441077,-3165.43065107,0.00021033,2]
[401101667,1767929446589,-4692.4932004,0.00021033,2]
[401101706,1767930636306,-160.36,9.475e-05,2]
[401101707,1767930636316,-555.0,9.63e-05,2]
[401101708,1767930636326,-180.41,0.00010001,2]
[401101709,1767930636339,-184.22008902,0.00010528,2]
[401101710,1767930636348,-250.0,0.00012872,2]
[401101711,1767930636358,-292.86020388,0.00012899,2]
[401101712,1767930636367,-300.0,0.00013156,2]
[401101713,1767930636376,-300.0,0.00013157,2]
[401101714,1767930636386,-300.0,0.00013157,2]
[401101715,1767930636396,-300.0,0.00013157,2]
[401101716,1767930636406,-300.0,0.00013157,2]
[401101717,1767930636416,-300.0,0.00013157,2]
[401101718,1767930636425,-300.0,0.00013157,2]
[401101719,1767930636435,-300.0,0.00013157,2]
[401101720,1767930636445,-300.0,0.00013157,2]
[401101721,1767930636455,-300.0,0.00013157,2]
[401101722,1767930636465,-300.0,0.00013157,2]
[401101723,1767930636474,-300.0,0.00013157,2]
[401101724,1767930636484,-300.0,0.00013157,2]
[401101725,1767930636494,-300.0,0.00013157,2]
[401101726,1767930636504,-300.0,0.00013157,2]
[401101727,1767930636514,-300.0,0.00013157,2]
[401101728,1767930636524,-600.0,0.00013157,2]
[401101729,1767930636535,-502.50394649,0.00013273,2]
[401101730,1767930636544,-500.0,0.00013273,2]
[401101731,1767930636555,-500.0,0.00013273,2]
[401101732,1767930636566,-500.0,0.00013273,2]
[401101733,1767930636575,-500.0,0.00013273,2]
[401101734,1767930636585,-500.0,0.00013273,2]
[401101735,1767930636594,-500.0,0.00013273,2]
[401101736,1767930636603,-500.0,0.00013273,2]
[401101737,1767930636613,-500.0,0.00013273,2]
[401101738,1767930636623,-500.0,0.00013273,2]
[401101739,1767930636638,-500.0,0.00013273,2]
[401101740,1767930636653,-58.46666364,0.00013273,2]
[401101742,1767930637765,-441.53333636,0.00013273,2]
[401101743,1767930637775,-326.71427128,0.00013273,2]
[401101744,1767930637784,-277.83953907,0.00013273,2]
[401101745,1767930637793,-407.01547648,0.00013273,2]
[401101746,1767930637803,-500.0,0.00013273,2]
[401101747,1767930637812,-500.0,0.00013273,2]
[401101748,1767930637821,-370.94490579,0.00013273,2]
[401101749,1767930637871,-129.05509421,0.00013273,2]
[401101750,1767930637881,-500.0,0.00013273,2]
[401101751,1767930637891,-500.0,0.00013273,2]
[401101752,1767930637901,-300.0,0.00013673,2]
[401101753,1767930637910,-299.22705364,0.00013698,2]
[401101754,1767930637919,-655.12572557,0.00013698,2]
[401101755,1767930637928,-655.12572557,0.00013698,2]
[401101756,1767930637938,-655.12572557,0.00013698,2]
[401101757,1767930637947,-655.12572557,0.00013698,2]
[401101758,1767930637957,-655.12572557,0.00013698,2]
[401101759,1767930637966,-655.12572557,0.00013698,2]
[401101760,1767930637975,-655.12572557,0.00013698,2]
[401101761,1767930637984,-655.12572557,0.00013698,2]
[401101762,1767930637993,-655.12572557,0.00013698,2]
[401101763,1767930638003,-655.12572557,0.00013698,2]
[401101764,1767930638012,-655.12572557,0.00013698,2]
[401101765,1767930638025,-655.12572557,0.00013698,2]
[401101766,1767930638034,-655.12572557,0.00013698,2]
[401101767,1767930638043,-655.12572557,0.00013698,2]
[401101768,1767930638053,-655.12572557,0.00013698,2]
[401101769,1767930638063,-655.12572557,0.00013698,2]
[401101770,1767930638073,-655.12572557,0.00013698,2]
[401101771,1767930638082,-655.12572557,0.00013698,2]
[401101772,1767930638092,-655.12572557,0.00013698,2]
[401101773,1767930638102,-655.12572557,0.00013698,2]
[401101774,1767930638112,-655.12572557,0.00013698,2]
[401101775,1767930638121,-655.12572557,0.00013698,2]
[401101776,1767930638131,-655.12572557,0.00013698,2]
[401101777,1767930638140,-720.63829812,0.00013698,2]
[401101778,1767930638149,-720.63829812,0.00013698,2]
[401101779,1767930638158,-720.63829812,0.00013698,2]
[401101780,1767930638167,-720.63829812,0.00013698,2]
[401101781,1767930638177,-720.63829812,0.00013698,2]
[401101782,1767930638186,-720.63829812,0.00013698,2]
[401101783,1767930638196,-720.63829812,0.00013698,2]
[401101784,1767930638206,-720.63829812,0.00013698,2]
[401101785,1767930638215,-720.63829812,0.00013698,2]
[401101786,1767930638225,-1133.86,0.00013698,2]
[401101787,1767930638234,-1133.86,0.00013698,2]
[401101788,1767930638243,-1133.86,0.00013698,2]
[401101789,1767930638252,-1133.86,0.00013698,2]
[401101790,1767930638262,-1133.86,0.00013698,2]
[401101791,1767930638271,-500.0,0.00013698,2]
[401101792,1767930638281,-500.0,0.00013698,2]
[401101793,1767930638290,-500.0,0.00013698,2]
[401101794,1767930638300,-500.0,0.00013698,2]
[401101795,1767930638309,-500.0,0.00013698,2]
[401101796,1767930638319,-500.0,0.00013698,2]
[401101797,1767930638328,-500.0,0.00013698,2]
[401101798,1767930638337,-500.0,0.00013698,2]
[401101799,1767930638346,-500.0,0.00013698,2]
[401101800,1767930638356,-500.0,0.00013698,2]
[401101801,1767930638365,-500.0,0.00013698,2]
[401101802,1767930638374,-500.0,0.00013698,2]
[401101803,1767930638383,-500.0,0.00013698,2]
[401101804,1767930638392,-527.53936173,0.00013698,2]